bitfinex-derivatives/quotes_SOLF0:USTF0_20260204
["timestamp","ask_amount","ask_price","bid_price","bid_amount"]
[1770206029065,2.18624409,96.033,95.996,9.3889]
[1770206030563,9.3846,96.041,95.996,9.3889]
[1770206030963,2.44379136,96.05,96.005,9.388]
[1770206031260,2.44566551,96.066,95.989,3.81120615]
[1770206031761,2.44566551,96.066,96.019,9.3866]
[1770206031957,2.44566551,96.066,95.998,3.70042644]
[1770206032470,2.45362168,96.055,96.003,3.70042644]
[1770206032657,2.45362168,96.055,95.987,3.70042644]
[1770206033759,2.45362168,96.055,95.991,9.3894]
[1770206033760,9.3842,96.045,95.991,9.3894]
[1770206034462,3.47439882,96.04,95.991,9.3894]
[1770206035565,3.47439882,96.04,95.991,13.08982644]
[1770206036766,9.3848,96.039,95.991,13.08982644]
[1770206037466,9.3848,96.039,95.992,3.61124743]
[1770206039369,9.3848,96.039,95.995,13.00024743]
[1770206040269,9.3838,96.049,96.003,9.3882]
[1770206040464,3.47439882,96.04,95.996,3.61124743]
[1770206040667,2.38646009,96.048,95.996,3.61124743]
[1770206041370,2.38646009,96.048,95.98,3.47439882]
[1770206041569,2.38646009,96.037,95.989,9.3896]
[1770206041972,2.40840023,96.019,95.965,3.61124743]
[1770206042369,2.40840023,96.019,95.973,3.61124743]
[1770206043074,2.40840023,96.053,95.991,3.61124743]
[1770206043273,2.40840023,96.049,95.991,3.61124743]
[1770206043475,2.40840023,96.039,95.991,3.61124743]
[1770206044374,11.79320023,96.039,95.992,9.3893]
[1770206047775,2.40840023,96.039,95.999,9.3886]
[1770206048573,2.40840023,96.039,95.991,13.00054743]
[1770206048869,9.3855,96.031,95.991,3.61124743]
[1770206049076,2.40840023,96.039,95.992,9.3893]
[1770206049271,2.40840023,96.039,95.991,3.61124743]
[1770206049473,2.40840023,96.039,95.993,3.61124743]
[1770206049778,3.47439882,96.05,95.993,3.61124743]
[1770206050076,2.3859829,96.05,95.993,3.61124743]
[1770206050678,9.384,96.047,95.999,9.3886]
[1770206052279,9.384,96.047,96.004,9.3881]
[1770206053181,9.384,96.047,96.004,12.99934743]
[1770206054178,2.3859829,96.05,96.005,3.61124743]
[1770206054386,2.18688633,96.072,96.021,3.61124743]
[1770206055681,2.18688633,96.072,96.029,9.3857]
[1770206055877,2.18582121,96.12,96.03,7.08564625]
[1770206056079,2.18582121,96.099,96.04,3.47439882]
[1770206056583,2.18582121,96.093,96.04,3.47043274]
[1770206056788,2.18582121,96.093,96.03,3.61124743]
[1770206056789,2.18582121,96.079,96.03,3.61124743]
[1770206057078,2.18582121,96.058,96.03,4.743e-05]
[1770206057283,3.8806919,96.049,95.99,3.47043274]
[1770206057683,3.47043274,96.07,96.01,3.47043274]
[1770206057879,3.8806919,96.085,96.02,3.47043274]
[1770206058079,3.8806919,96.085,96.03,3.47043274]
[1770206058485,3.8806919,96.08,96.03,3.47043274]
[1770206058684,3.8806919,96.069,96.01,3.47043274]
[1770206059185,3.8806919,96.069,96.011,3.61124743]
[1770206059386,3.8806919,96.069,96.024,3.61124743]
[1770206061487,3.8806919,96.069,96.025,9.386]
[1770206061983,13.2624919,96.069,96.024,3.61124743]
[1770206063291,3.8806919,96.069,96.024,3.61124743]
[1770206063491,3.8806919,96.069,96.03,3.47043274]
[1770206063688,3.8806919,96.069,96.024,3.61124743]
[1770206064389,3.8806919,96.069,96.025,9.386]
[1770206065113,3.8806919,96.069,96.017,9.3869]
[1770206065286,3.8806919,96.069,96.007,3.74335525]
[1770206065489,3.83415474,96.059,96.007,3.74335525]
[1770206066289,3.83415474,96.059,96.011,3.74335525]
[1770206066986,3.83415474,96.074,96.021,3.74335525]
[1770206067690,3.83415474,96.074,96.034,9.3852]
[1770206071195,9.3809,96.078,96.035,3.74335525]
[1770206072396,9.3809,96.078,96.036,9.385]
[1770206072598,3.83415474,96.085,96.036,9.385]
[1770206073300,83.12,96.119,96.02,3.47043274]
[1770206073301,3.83415474,96.073,96.025,9.386]
[1770206073495,83.12,96.119,96.025,9.386]
[1770206073496,3.83415474,96.069,96.025,9.386]
[1770206073798,3.83415474,96.069,96.025,13.12935525]
[1770206074098,3.83415474,96.069,96.027,9.3858]
[1770206074402,9.3816,96.071,96.028,3.74335525]
[1770206078810,3.83415474,96.07,96.027,9.3858]
[1770206088811,3.83415474,96.07,96.036,9.3849]
[1770206090011,3.83415474,96.07,96.028,3.74335525]
[1770206091713,3.83415474,96.07,96.031,9.3855]
[1770206092214,3.6258985,96.068,96.023,9.3863]
[1770206092413,3.6258985,96.068,96.024,3.85672938]
[1770206093411,3.47043274,96.08,96.024,3.85672938]
[1770206093611,3.6258985,96.079,96.024,3.85672938]
[1770206093805,9.3814,96.074,96.033,9.3853]
[1770206094113,13.0072985,96.074,96.033,9.3853]
[1770206094711,13.0072985,96.074,96.033,13.24202938]
[1770206096609,3.6258985,96.073,96.033,3.85672938]
[1770206096810,9.3816,96.071,96.033,3.85672938]
[1770206097010,3.8012459,96.07,96.033,3.85672938]
[1770206100112,3.8012459,96.07,96.027,9.3859]
[1770206100417,3.8012459,96.07,96.028,3.5764032]
[1770206101716,9.382,96.067,96.028,3.5764032]
[1770206103312,3.8012459,96.066,96.028,3.5764032]
[1770206103815,3.8012459,96.086,96.038,3.5764032]
[1770206104019,3.8012459,96.1,96.041,3.5764032]
[1770206104316,3.8012459,96.09,96.041,3.5764032]
[1770206104516,18.7528,96.125,95.984,83.12]
[1770206104517,3.8012459,96.079,96.028,3.5764032]
[1770206105513,3.8012459,96.073,96.031,9.3854]
[1770206105708,3.8012459,96.073,96.028,3.5764032]
[1770206105916,3.8012459,96.089,96.03,3.47043274]
[1770206106215,3.8012459,96.089,96.031,3.5764032]
[1770206106918,13.1815459,96.084,96.039,3.5764032]
[1770206107119,3.8012459,96.084,96.039,3.5764032]
[1770206107617,3.8012459,96.084,96.047,9.3839]
[1770206109418,3.8012459,96.084,96.047,12.9603032]
[1770206111819,3.8012459,96.084,96.047,3.5764032]
[1770206114220,3.8012459,96.084,96.039,9.3847]
[1770206115129,3.8012459,96.084,96.042,9.3844]
[1770206115321,3.8012459,96.097,96.043,3.5764032]
[1770206116729,3.8012459,96.092,96.048,9.3838]
[1770206118032,3.8012459,96.092,96.043,3.5764032]
[1770206118033,9.3786,96.102,96.061,3.5764032]
[1770206118830,9.3775,96.113,96.066,3.5764032]
[1770206119138,9.3775,96.113,96.071,3.5764032]
[1770206119935,3.8012459,96.11,96.06,3.46918813]
[1770206120130,3.8012459,96.109,96.058,3.5764032]
[1770206120333,3.8012459,96.099,96.044,3.5764032]
[1770206120533,3.8012459,96.096,96.044,3.5764032]
[1770206121635,3.8012459,96.096,96.054,9.3832]
[1770206122535,3.8012459,96.096,96.058,3.64877666]
[1770206123838,9.3787,96.101,96.058,3.64877666]
[1770206124037,9.3793,96.096,96.058,3.64877666]
[1770206124238,3.76696237,96.089,96.03,7.11796479]
[1770206124439,3.76696237,96.089,96.03,3.64877666]
[1770206124638,3.76696237,96.079,96.03,3.64877666]
[1770206125243,3.76696237,96.092,96.032,3.64877666]
[1770206125640,3.46918813,96.09,96.032,3.64877666]
[1770206125836,3.76696237,96.105,96.051,3.64877666]
[1770206126141,3.76696237,96.12,96.08,3.46918813]
[1770206126439,3.76696237,96.12,96.08,7.11796479]
[1770206127639,3.76696237,96.139,96.081,3.64877666]
[1770206127839,9.3766,96.123,96.081,3.64877666]
[1770206128236,9.3754,96.135,96.09,3.46918813]
[1770206128445,9.3754,96.135,96.091,3.64877666]
[1770206128942,3.76696237,96.139,96.091,13.02837666]
[1770206130546,3.76696237,96.139,96.092,3.64877666]
[1770206130842,3.76696237,96.137,96.083,9.3804]
[1770206131038,3.76696237,96.137,96.083,13.02917666]
[1770206131245,3.46918813,96.13,96.083,13.02917666]
[1770206131444,3.46918813,96.13,96.084,3.64877666]
[1770206131646,3.76696237,96.137,96.084,3.64877666]
[1770206131841,9.3753,96.136,96.085,9.3802]
[1770206132139,9.3753,96.136,96.04,18.7692]
[1770206132140,3.76696237,96.149,96.091,3.64877666]
[1770206132346,3.76696237,96.163,96.101,3.64877666]
[1770206132935,3.76696237,96.163,96.075,83.1]
[1770206132936,3.76696237,96.163,96.115,13.02607666]
[1770206133139,3.46918813,96.2,96.141,3.64877666]
[1770206133347,3.76696237,96.204,96.151,3.64877666]
[1770206133542,3.46918813,96.19,96.151,3.64877666]
[1770206133752,3.46918813,96.18,96.131,3.64877666]
[1770206134751,83.1,96.221,96.099,83.1]
[1770206134752,3.76696237,96.187,96.133,3.64877666]
[1770206135246,3.76696237,96.203,96.151,3.64877666]
[1770206136248,9.369,96.201,96.151,3.64877666]
[1770206136549,1.8095924,96.237,96.131,3.64877666]
[1770206136550,3.46918813,96.17,96.131,3.64877666]
[1770206137252,3.46918813,96.17,96.116,3.64877666]
[1770206137445,3.76696237,96.165,96.116,3.64877666]
[1770206137645,3.46918813,96.16,96.116,3.64877666]
[1770206138356,9.3715,96.175,96.121,3.64877666]
[1770206138550,3.76696237,96.181,96.131,3.64877666]
[1770206138851,3.76696237,96.197,96.141,3.64877666]
[1770206139346,3.76696237,96.197,96.141,13.02357666]
[1770206139548,3.76696237,96.197,96.142,3.64877666]
[1770206140150,3.76696237,96.197,96.147,3.64877666]
[1770206140450,3.76696237,96.197,96.151,3.64877666]
[1770206140850,3.46918813,96.21,96.151,3.64877666]
[1770206141349,7.2361505,96.21,96.151,3.64877666]
[1770206141550,9.3694,96.196,96.151,3.64877666]
[1770206145654,3.46918813,96.2,96.151,3.64877666]
[1770206145852,3.46918813,96.2,96.151,13.02257666]
[1770206147356,3.76696237,96.198,96.142,9.3747]
[1770206147551,3.46918813,96.18,96.134,3.64877666]
[1770206147753,3.76696237,96.179,96.134,3.64877666]
[1770206149056,3.46918813,96.19,96.134,3.64877666]
[1770206149358,3.76696237,96.196,96.141,3.64877666]
[1770206150857,3.76696237,96.196,96.15,3.46918813]
[1770206151765,3.76696237,96.196,96.151,3.9199808]
[1770206153862,3.46918813,96.21,96.162,13.2926808]
[1770206154056,7.27721449,96.21,96.162,13.2926808]
[1770206154259,3.80802636,96.209,96.162,13.2926808]
[1770206154759,3.80802636,96.209,96.162,3.9199808]
[1770206155760,9.3687,96.204,96.162,3.9199808]
[1770206155962,13.17672636,96.204,96.162,3.9199808]
[1770206157466,13.17672636,96.204,96.158,9.3731]
[1770206157467,3.74741367,96.203,96.158,9.3731]
[1770206158561,3.46918813,96.2,96.151,3.56783708]
[1770206158962,3.46918813,96.2,96.152,9.3737]
[1770206159161,3.46918813,96.2,96.152,12.94153708]
[1770206159764,7.2166018,96.2,96.152,12.94153708]
[1770206160363,7.2166018,96.2,96.157,9.3732]
[1770206160568,3.46918813,96.22,96.161,3.56783708]
[1770206160960,3.46918813,96.21,96.161,3.56783708]
[1770206161159,3.46918813,96.22,96.175,3.56783708]
[1770206161562,3.46918813,96.24,96.181,3.56783708]
[1770206161764,9.3654,96.238,96.19,12.93783708]
[1770206162062,9.3654,96.238,96.191,3.56783708]
[1770206162464,3.74741367,96.239,96.194,3.56783708]
[1770206163370,3.74741367,96.278,96.219,3.56783708]
[1770206163667,3.74741367,96.267,96.219,3.56783708]
[1770206163965,3.74741367,96.249,96.19,7.03702521]
[1770206164174,3.46918813,96.23,96.19,3.56783708]
[1770206164363,3.46918813,96.22,96.161,3.56783708]
[1770206164568,3.46918813,96.21,96.162,9.3726]
[1770206164770,3.74741367,96.209,96.162,9.3726]
[1770206165772,3.46918813,96.2,96.162,9.3726]
[1770206166068,3.46918813,96.2,96.161,3.56783708]
[1770206166668,3.74741367,96.209,96.161,3.56783708]
[1770206166869,3.46918813,96.22,96.161,3.56783708]
[1770206167162,3.46918813,96.21,96.161,3.56783708]
[1770206167369,3.46918813,96.2,96.161,3.56783708]
[1770206168370,9.3685,96.206,96.161,3.56783708]
[1770206168669,3.74741367,96.205,96.161,3.56783708]
[1770206169767,3.74741367,96.203,96.15,9.3738]
[1770206169969,3.74741367,96.217,96.147,3.56783708]
[1770206170469,3.74741367,96.217,96.169,3.56783708]
[1770206170870,3.74741367,96.217,96.172,12.93953708]
[1770206171072,3.74741367,96.227,96.173,3.56783708]
[1770206172668,9.3665,96.226,96.177,9.3712]
[1770206172874,3.74741367,96.225,96.177,9.3712]
[1770206173373,3.74741367,96.223,96.12,3.56783708]
[1770206173570,3.74741367,96.199,96.12,3.56783708]
[1770206174673,3.74741367,96.199,96.095,18.7585]
[1770206174674,3.74741367,96.184,96.129,3.56783708]
[1770206175675,13.11811367,96.184,96.131,9.3757]
[1770206176173,13.11811367,96.184,96.131,12.94353708]
[1770206176370,3.74741367,96.184,96.134,9.3754]
[1770206176567,3.74741367,96.203,96.132,3.56783708]
[1770206176966,9.3696,96.195,96.143,3.56783708]
[1770206177170,3.74741367,96.194,96.143,3.56783708]
[1770206178576,3.74741367,96.194,96.145,9.3743]
[1770206180581,13.11741367,96.191,96.143,3.56783708]
[1770206181076,13.11741367,96.191,96.143,12.94233708]
[1770206181286,13.11741367,96.191,96.144,3.78082933]
[1770206181784,3.91275363,96.19,96.144,3.78082933]
[1770206182282,3.91275363,96.188,96.111,3.78082933]
[1770206182886,13.28295363,96.188,96.135,3.78082933]
[1770206183785,3.91275363,96.187,96.137,9.3752]
[1770206184087,3.91275363,96.187,96.138,3.78082933]
[1770206184287,3.91275363,96.187,96.143,3.78082933]
[1770206184587,3.91275363,96.198,96.143,3.78082933]
[1770206184785,3.91275363,96.213,96.157,3.78082933]
[1770206186483,3.91275363,96.204,96.154,9.3734]
[1770206186686,3.91275363,96.204,96.143,3.78082933]
[1770206187081,9.3703,96.188,96.143,3.78082933]
[1770206188788,3.91275363,96.187,96.143,3.78082933]
[1770206190191,3.91275363,96.187,96.143,13.15542933]
[1770206193791,3.91275363,96.187,96.149,9.3739]
[1770206196293,3.91275363,96.202,96.15,3.78082933]
[1770206196789,3.91275363,96.2,96.156,9.3733]
[1770206196995,3.91275363,96.2,96.15,3.78082933]
[1770206198696,3.91275363,96.198,96.152,9.3736]
[1770206199695,3.91275363,96.196,96.152,9.3736]
[1770206200193,3.91275363,96.196,96.154,13.15422933]
[1770206200997,3.91275363,96.206,96.157,3.78082933]
[1770206201298,3.91275363,96.237,96.157,3.78082933]
[1770206202403,3.91275363,96.237,96.191,9.3699]
[1770206204901,3.91275363,96.228,96.183,3.78082933]
[1770206205100,3.91275363,96.228,96.169,3.78082933]
[1770206205906,3.91275363,96.214,96.169,13.15282933]
[1770206206508,3.91275363,96.214,96.169,3.78082933]
[1770206207802,9.3683,96.208,96.169,3.78082933]
[1770206208108,13.28105363,96.208,96.169,3.78082933]
[1770206210201,3.91275363,96.205,96.156,13.15412933]
[1770206210409,3.91275363,96.205,96.156,3.78082933]
[1770206211808,9.3695,96.196,96.156,3.78082933]
[1770206212810,3.46333259,96.2,96.156,3.78082933]
[1770206213410,9.3692,96.199,96.156,3.78082933]
[1770206214512,3.92536171,96.198,96.156,3.78082933]
[1770206216413,9.3694,96.197,96.156,3.78082933]
[1770206217110,3.92536171,96.198,96.156,3.78082933]
[1770206218716,13.29456171,96.198,96.156,3.78082933]
[1770206222518,3.87648388,96.197,96.156,3.78082933]
[1770206224218,3.87648388,96.197,96.162,12.9954915]
[1770206224418,3.87648388,96.229,96.171,3.6227915]
[1770206224618,3.87648388,96.229,96.181,3.6227915]
[1770206225626,3.87648388,96.227,96.182,9.3707]
[1770206225934,3.87648388,96.209,96.156,3.6227915]
[1770206226629,3.46333259,96.2,96.156,12.9960915]
[1770206226829,3.87648388,96.199,96.156,3.6227915]
[1770206227328,3.87648388,96.199,96.157,9.3732]
[1770206227526,3.87648388,96.213,96.161,3.6227915]
[1770206227925,3.87648388,96.213,96.172,9.3717]
[1770206228534,3.87648388,96.213,96.165,9.3724]
[1770206229032,3.87648388,96.213,96.171,9.3718]
[1770206229632,3.87648388,96.209,96.162,9.3727]
[1770206229837,3.46333259,96.2,96.162,9.3727]
[1770206230941,3.87648388,96.208,96.165,9.3724]
[1770206231533,9.3684,96.206,96.163,3.6227915]
[1770206231732,3.87648388,96.205,96.163,3.6227915]
[1770206232140,13.24528388,96.203,96.163,3.6227915]
[1770206233037,3.87648388,96.197,96.151,3.6227915]
[1770206234542,9.3702,96.189,96.151,3.6227915]
[1770206234842,3.87648388,96.188,96.151,3.6227915]
[1770206235145,3.87648388,96.188,96.14,12.83813259]
[1770206235146,3.87648388,96.188,96.14,9.3748]
[1770206236743,9.3708,96.182,96.14,9.3748]
[1770206238941,3.87648388,96.177,96.138,3.6227915]
[1770206239346,3.87648388,96.199,96.14,3.46333259]
[1770206239547,3.87648388,96.199,96.141,3.6227915]
[1770206239840,3.87648388,96.195,96.148,9.3741]
[1770206240146,18.7303,96.24,96.141,3.6227915]
[1770206240147,3.87648388,96.189,96.141,3.6227915]
[1770206240550,3.87648388,96.185,96.141,3.6227915]
[1770206240844,3.89343012,96.179,96.128,3.6227915]
[1770206241740,9.3714,96.176,96.13,3.60757009]
[1770206243546,9.3718,96.172,96.13,3.60757009]
[1770206244249,3.89343012,96.175,96.133,9.3755]
[1770206246348,3.89343012,96.214,96.16,3.46461271]
[1770206246646,3.89343012,96.199,96.058,145.9563]
[1770206246850,3.89343012,96.179,96.12,3.46461271]
[1770206247153,3.89343012,96.169,96.059,83.02]
[1770206247352,3.89343012,96.169,96.11,3.46461271]
[1770206247754,3.89343012,96.169,96.123,9.3765]
[1770206248856,3.89343012,96.168,96.123,9.3765]
[1770206249257,13.26583012,96.166,96.117,3.60757009]
[1770206249457,3.89343012,96.165,96.117,3.60757009]
[1770206249760,3.89343012,96.159,96.102,3.60757009]
[1770206250857,3.89343012,96.156,96.106,12.98567009]
[1770206251260,9.3735,96.154,96.108,9.3779]
[1770206251661,9.3735,96.154,96.108,12.98547009]
[1770206252057,3.89343012,96.153,96.115,9.3773]
[1770206254561,3.89343012,96.153,96.1,3.46461271]
[1770206254867,3.89343012,96.149,96.095,3.60757009]
[1770206255358,13.26743012,96.149,96.105,9.3783]
[1770206255969,3.89343012,96.149,96.111,3.60757009]
[1770206256664,3.89343012,96.149,96.091,3.60757009]
[1770206257569,9.373,96.16,96.116,3.60757009]
[1770206257765,3.89343012,96.162,96.116,3.60757009]
[1770206259665,3.89343012,96.162,96.116,12.98477009]
[1770206260275,3.89343012,96.162,96.117,3.60757009]
[1770206260487,3.89343012,96.162,96.121,3.60757009]
[1770206261570,3.89343012,96.174,96.121,3.60757009]
[1770206261873,9.3713,96.177,96.131,3.60757009]
[1770206262274,9.372,96.17,96.131,3.60757009]
[1770206262972,3.89343012,96.159,96.114,3.60757009]
[1770206264171,3.89343012,96.174,96.116,3.60757009]
[1770206264378,3.89343012,96.174,96.131,3.60757009]
[1770206265677,9.3718,96.172,96.131,3.60757009]
[1770206267582,9.371,96.18,96.132,3.60757009]
[1770206267781,3.89343012,96.18,96.132,3.60757009]
[1770206267977,3.89343012,96.179,96.132,3.60757009]
[1770206268472,3.89343012,96.179,96.134,3.60757009]
[1770206268678,3.89343012,96.192,96.141,3.60757009]
[1770206269280,9.3684,96.207,96.158,3.60757009]
[1770206269479,3.89343012,96.199,96.145,3.60757009]
[1770206269887,9.3705,96.186,96.145,3.60757009]
[1770206271278,3.89343012,96.187,96.145,3.60757009]
[1770206272386,13.26373012,96.187,96.145,3.60757009]
[1770206272576,3.82318375,96.186,96.145,3.60757009]
[1770206275479,3.82318375,96.181,96.117,3.86860517]
[1770206275680,3.82318375,96.179,96.12,3.46461271]
[1770206275884,3.82318375,96.169,96.117,3.86860517]
[1770206276782,9.3724,96.165,96.117,3.86860517]
[1770206276983,3.82318375,96.164,96.117,3.86860517]
[1770206278294,9.3729,96.16,96.117,3.86860517]
[1770206280989,9.3722,96.168,96.121,3.63147678]
[1770206281385,9.3712,96.178,96.132,3.63147678]
[1770206281791,3.82150608,96.18,96.132,3.63147678]
[1770206282693,3.82150608,96.18,96.134,3.63147678]
[1770206283594,13.19120608,96.194,96.147,3.63147678]
[1770206283789,3.82150608,96.207,96.151,3.63147678]
[1770206284093,3.82150608,96.207,96.161,3.63147678]
[1770206284493,3.75739074,96.205,96.163,9.3726]
[1770206284689,3.75739074,96.205,96.161,3.63147678]
[1770206285695,9.3687,96.204,96.163,9.3726]
[1770206288291,9.3679,96.212,96.166,3.77750009]
[1770206288894,3.75739074,96.211,96.166,3.77750009]
[1770206289095,13.12559074,96.209,96.166,3.77750009]
[1770206289596,3.75739074,96.208,96.166,3.77750009]
[1770206290293,9.3684,96.207,96.166,3.77750009]
[1770206290500,3.75739074,96.206,96.166,3.77750009]
[1770206290799,3.75739074,96.206,96.104,18.7567]
[1770206290800,3.75739074,96.189,96.133,3.77750009]
[1770206291097,3.75739074,96.186,96.138,9.3751]
[1770206292095,3.75739074,96.173,96.127,9.3761]
[1770206292300,3.75739074,96.173,96.12,7.2421128]
[1770206292499,3.75739074,96.173,96.121,3.77750009]
[1770206292704,3.75739074,96.173,96.129,3.77750009]
[1770206293001,3.75739074,96.173,96.13,3.46461271]
[1770206293698,3.75739074,96.173,96.131,9.3757]
[1770206294993,9.3718,96.172,96.131,9.3757]
[1770206295192,9.3718,96.172,96.129,3.77750009]
[1770206295398,9.3729,96.161,96.114,3.77750009]
[1770206295807,3.75739074,96.169,96.115,3.77750009]
[1770206296004,13.12949074,96.169,96.121,3.77750009]
[1770206296900,13.12949074,96.169,96.121,13.15420009]
[1770206298503,13.12949074,96.169,96.122,3.77750009]
[1770206298804,3.75739074,96.164,96.122,3.77750009]
[1770206299709,9.3726,96.163,96.122,3.77750009]
[1770206300108,3.75739074,96.164,96.124,9.3764]
[1770206304109,3.75739074,96.164,96.124,13.10759915]
[1770206304314,3.75739074,96.164,96.125,3.73119915]
[1770206304604,9.3727,96.162,96.125,3.73119915]
[1770206305606,3.62665641,96.161,96.125,3.73119915]
[1770206309214,16.46426293,96.16,96.125,3.73119915]
[1770206309514,12.99965641,96.16,96.125,3.73119915]
[1770206318416,9.3723,96.167,96.125,3.73119915]
[1770206318726,3.62665641,96.179,96.087,83.02]
[1770206318727,3.62665641,96.179,96.131,3.73119915]
[1770206319121,9.3713,96.177,96.134,9.3754]
[1770206319325,12.99795641,96.177,96.135,3.73119915]
[1770206320544,3.62665641,96.176,96.135,3.73119915]
[1770206320723,12.99815641,96.175,96.137,9.3751]
[1770206321117,12.99815641,96.175,96.137,13.10629915]
[1770206322023,3.62665641,96.174,96.137,13.10629915]
[1770206322227,3.62665641,96.159,96.102,3.73119915]
[1770206323728,13.00085641,96.148,96.105,9.3783]
[1770206324423,3.62665641,96.147,96.105,9.3783]
[1770206328128,3.62665641,96.16,96.113,3.73119915]
[1770206328327,3.62665641,96.172,96.13,7.19580567]
[1770206329732,3.62665641,96.172,96.131,9.3757]
[1770206331634,3.80715639,96.168,96.13,3.73119915]
[1770206335438,3.80715639,96.182,96.135,3.82294622]
[1770206335933,13.17805639,96.181,96.139,9.3749]
[1770206336141,3.80715639,96.18,96.139,9.3749]
[1770206337738,9.3712,96.178,96.139,9.3749]
[1770206337935,3.72967966,96.177,96.135,3.82294622]
[1770206339740,3.72967966,96.175,96.135,3.82294622]
[1770206339942,3.72967966,96.175,96.136,9.3753]
[1770206341642,3.72967966,96.175,96.121,3.7036178]
[1770206342538,13.10187966,96.168,96.121,3.7036178]
[1770206342740,3.72967966,96.167,96.121,3.7036178]
[1770206343743,13.10227966,96.164,96.121,3.7036178]
[1770206344942,3.72967966,96.157,96.109,3.7036178]
[1770206345647,9.374,96.15,96.109,3.7036178]
[1770206346345,3.72967966,96.157,96.109,3.7036178]
[1770206346346,3.72967966,96.145,96.109,3.7036178]
[1770206347147,9.3747,96.142,96.109,3.7036178]
[1770206347448,3.72967966,96.157,96.109,3.7036178]
[1770206349041,3.72967966,96.157,96.11,3.46460652]
[1770206351749,3.72967966,96.157,96.111,3.7036178]
[1770206352644,3.72967966,96.157,96.111,13.0813178]
[1770206352857,3.72967966,96.157,96.112,3.7036178]
[1770206354649,13.10297966,96.156,96.112,3.7036178]
[1770206354949,3.72967966,96.155,96.112,3.7036178]
[1770206355448,3.72967966,96.155,96.115,9.3772]
[1770206355750,13.10197966,96.167,96.121,3.7036178]
[1770206356152,3.72967966,96.167,96.131,9.3757]
[1770206356348,3.72967966,96.167,96.132,3.7036178]
[1770206357757,3.72967966,96.167,96.134,3.7036178]
[1770206358757,3.72967966,96.167,96.135,9.3753]
[1770206359252,3.72967966,96.167,96.101,3.7036178]
[1770206359447,2.52938776,96.159,96.101,3.7036178]
[1770206359649,2.52938776,96.155,96.101,3.7036178]
[1770206360456,2.58497803,96.148,96.101,3.7036178]
[1770206360648,2.58497803,96.148,96.08,3.46460652]
[1770206360952,2.58288935,96.129,96.071,3.91040225]
[1770206361162,2.58288935,96.118,96.071,3.91040225]
[1770206361550,2.58288935,96.132,96.081,3.91040225]
[1770206362151,2.58288935,96.132,96.092,3.91040225]
[1770206362550,2.58288935,96.132,96.093,13.28980225]
[1770206362849,12.01624368,96.145,96.101,3.91040225]
[1770206364651,12.01624368,96.145,96.102,13.28900225]
[1770206364851,12.01624368,96.145,96.1,3.46635501]
[1770206364852,9.3734,96.156,96.103,3.91040225]
[1770206365350,9.3734,96.156,96.11,3.46635501]
[1770206365552,2.60603171,96.155,96.11,3.46635501]
[1770206366057,2.60603171,96.155,96.108,3.91040225]
[1770206366257,2.59930269,96.149,96.094,3.91040225]
[1770206367761,9.3753,96.136,96.094,3.91040225]
[1770206368860,9.3745,96.144,96.1,7.37675726]
[1770206370661,9.3752,96.137,96.1,7.37675726]
[1770206371556,2.59186521,96.136,96.1,7.37675726]
[1770206371862,9.3752,96.137,96.101,3.91040225]
[1770206372458,9.3744,96.145,96.101,3.91040225]
[1770206372664,2.62699766,96.149,96.101,3.91040225]
[1770206373162,9.3742,96.148,96.102,3.91040225]
[1770206373364,2.62699766,96.149,96.102,3.91040225]
[1770206374763,2.65985779,96.14,96.102,3.91040225]
[1770206376166,12.03485779,96.14,96.102,3.91040225]
[1770206377763,2.65985779,96.14,96.103,9.3784]
[1770206377967,9.3741,96.148,96.104,3.91040225]
[1770206378362,2.61601618,96.155,96.104,3.91040225]
[1770206378564,9.3748,96.142,96.104,3.91040225]
[1770206380572,9.3741,96.149,96.111,3.91040225]
[1770206380872,11.98142355,96.149,96.111,3.91040225]
[1770206381171,2.60732355,96.148,96.099,3.91040225]
[1770206381371,2.60732355,96.148,96.1,3.46635501]
[1770206381766,9.3743,96.146,96.101,3.91040225]
[1770206385072,9.3749,96.14,96.101,3.91040225]
[1770206385272,2.60057509,96.139,96.101,3.91040225]
[1770206385773,2.60057509,96.139,96.09,3.46635501]
[1770206385969,9.3758,96.131,96.091,3.91040225]
[1770206387369,2.73088492,96.138,96.091,3.91040225]
[1770206388273,2.79574086,96.135,96.091,3.91040225]
[1770206388973,9.3762,96.127,96.091,3.91040225]
[1770206389173,2.79574086,96.126,96.091,3.91040225]
[1770206389672,9.3765,96.123,96.091,3.91040225]
[1770206392574,2.82127346,96.12,96.075,9.3812]
[1770206392872,2.82127346,96.119,96.068,13.08156135]
[1770206393380,2.82127346,96.119,96.001,7.23759882]
[1770206393572,145.8478,96.13,96.001,7.23759882]
[1770206393777,31.25,96.127,96.021,7.23432793]
[1770206393976,114.74,96.132,96.041,7.23432793]
[1770206394175,114.74,96.132,96.05,3.46635501]
[1770206394374,3.46635501,96.11,96.05,3.46635501]